Cogmind - Beta 13 @@@ ROGUE MODE // 2024.04.15 @ 00:49:33 Player: Mountinlodge Result: Destroyed by G-34 Mercenary with Small Laser Performance ------------- Evolutions (1) 500 Regions Visited (3) 600 Robots Destroyed (24) 120 Value Destroyed (629) 629 Prototype IDs (0) 0 Alien Tech Used (0) 0 Bonus (0) 0 TOTAL SCORE: 1849 Bonus ------- None Cogmind --------- Core Integrity 0/400 Matter 279/300 Energy 100/100 System Corruption 2% Temperature Cool (6) Movement Treading (160) Location -9/Materials Parts ------- > --- POWER (1) -------- (None) > --- PROPULSION (2) --- Improved Treads > --- UTILITY (4) ------ Visual Processing Unit Signal Interpreter > --- WEAPON (2) ------- (None) > --- INVENTORY (5) ---- Ion Engine High-capacity Matter Pod (200) Faulty Experimental Sensor Array Terrain Scan Processor Shield Generator Peak State ------------ > --- POWER ------------ Light Ion Engine > --- PROPULSION ------- Aluminum Leg Aluminum Leg > --- UTILITY ---------- Visual Processing Unit Sensor Array Improved Terrain Scanner Hardened Light Armor Plating > --- WEAPON ----------- Beam Rifle Autogun > --- INVENTORY -------- High-capacity Matter Pod Experimental Sensor Array Signal Interpreter Seismic Detector [Rating: 16] Favorites ----------- Power Light Ion Engine Engine Light Ion Engine Propulsion Aluminum Leg Treads Improved Treads Leg Aluminum Leg Utility Medium Storage Unit Device Seismic Detector Storage Medium Storage Unit Processor Visual Processing Unit Protection Hardened Light Armor Plating Weapon Assault Rifle Energy Gun EM Pulse Gun Ballistic Gun Assault Rifle Launcher Rocket Launcher Special Weapon Mining Laser Build | -11 -10 -10 -9 ------- Run | Yrd Mat Min Mat Slots Evolved 2 | . . . 2 Power . | . . . . Propulsion . | . . . . Utility 2 | . . . 2 Weapon . | . . . . Parts Attached 44 | 9 14 4 17 Power 7 | 1 3 1 2 Engine 7 | 1 3 1 2 Core . | . . . . Reactor . | . . . . Propulsion 9 | 3 2 . 4 Treads 1 | . . . 1 Leg 8 | 3 2 . 3 Wheel . | . . . . Hover . | . . . . Flight . | . . . . Utility 13 | 2 4 1 6 Device 6 | 2 2 1 1 Storage 2 | . 2 . . Processor 2 | . . . 2 Hackware . | . . . . Protection 3 | . . . 3 Artifact . | . . . . Weapon 15 | 3 5 2 5 Energy Gun 4 | 1 2 . 1 Energy Cannon . | . . . . Ballistic Gun 8 | 2 2 2 2 Ballistic Cannon . | . . . . Launcher 2 | . . . 2 Special Weapon 1 | . 1 . . Impact Weapon . | . . . . Slashing Weapon . | . . . . Piercing Weapon . | . . . . Special Melee Weapon . | . . . . Unidentified Prototypes . | . . . . Parts Lost 11 | . 4 1 6 Power 1 | . 1 . . Propulsion 3 | . 1 . 2 Utility 3 | . . . 3 Weapon 4 | . 2 1 1 Highest Loss Streak 5 | . 2 1 5 To Critical Strikes . | . . . . Average Slot Usage (%) 95 | . 93 99 93 Engine 11 | . 10 14 10 Leg 25 | . 27 28 20 Device 15 | . 14 14 18 Storage 9 | . 12 14 . Processor 3 | . . . 12 Protection 2 | . . . 9 Energy Gun 8 | . 16 1 7 Ballistic Gun 11 | . 6 14 12 Special Weapon 5 | . 3 12 . Naked Turns . | . . . . Heaviest Build 28 | 9 28 18 22 Greatest Support 23 | 20 20 20 23 Greatest Overweight (x) 4 | . 1 . 4 Average Overweight (x) . | . . . . Largest Inventory Capacity 15 | 5 15 10 10 Average Capacity 8 | 5 9 10 5 Most Carried 10 | 5 10 10 9 Average Carried 7 | 3 8 9 4 Final Capacity 10 | 5 10 10 5 Final Carried 10 | 3 10 9 5 Class Distribution -------------------- 50% | Mutant 29% | Scavenger-Mutant 19% | Scavenger-Skirmisher Dominant Class ---------------- Mutant | -10/Materials Scavenger-Mutant | -10/Mines Scavenger-Skirmisher | -9/Materials Resources | -11 -10 -10 -9 ----------- Run | Yrd Mat Min Mat Matter Collected 1027 | 314 383 66 264 Remotely . | . . . . Salvage Created 619 | 75 350 . 194 Parts 52 | 7 21 2 22 Haulers Intercepted . | . . . . Recyclers Shooed 1 | . 1 . . Parts Field Recycled . | . . . . Retrieved Matter . | . . . . Parts Self-Destructed . | . . . . Prevented . | . . . . Kills | -11 -10 -10 -9 ------- Run | Yrd Mat Min Mat Combat Hostiles Destroyed 18 | 1 9 2 6 Guns 13 | 1 8 1 3 Cannons 1 | . . 1 . AOE 4 | . 1 . 3 Classes Destroyed 8 | 2 2 . 4 Worker 3 | . . . 3 Builder 1 | . . . 1 Tunneler 1 | 1 . . . Watcher 1 | . 1 . . Swarmer 4 | . 2 2 . Grunt 12 | 1 7 . 4 Brawler 1 | . . . 1 Sentry 1 | . . . 1 Best Kill Streak 8 | 1 3 1 8 Combat Bots Only 4 | 1 3 1 4 Max Kills in Single Turn 2 | 1 1 1 2 Gunslinging . | . . . . Exploded 2 | . 1 . 2 Melee . | . . . . Uniques/NPCs Destroyed . | . . . . Combat | -11 -10 -10 -9 -------- Run | Yrd Mat Min Mat Hostile Shots Fired 232 | 2 66 26 138 Missed 73 | 1 17 6 49 Damage Taken 1928 | 10 566 177 1175 Core 560 | 10 112 36 402 Absorbed by Shields . | . . . . Regen/Repaired (Parts) 58 | . 38 . 20 Core Remaining (%) 66 | 96 . 36 . Volleys Fired 83 | 8 36 12 27 Largest 2 | 2 2 2 2 Hottest 120 | 60 105 120 79 Shots Fired 122 | 10 58 17 37 Gun 98 | 10 53 7 28 Cannon . | . . . . Launcher 9 | . . . 9 Special 15 | . 5 10 . Kinetic 49 | 8 21 7 13 Thermal 44 | . 19 10 15 Explosive 9 | . . . 9 Electromagnetic 20 | 2 18 . . Robot Hit Streak 9 | 1 9 2 4 Robot Miss Streak 6 | 1 2 3 6 Penetration Max . | . . . . Secondary Targets 1 | . 1 . . Max Gunslinging Chain 1 | . 1 . . Shots Hit Robots 66 | 5 33 7 21 Core Hits 42 | 3 18 2 19 Critical Kills . | . . . . Critical Parts Destroyed . | . . . . Critical Strikes 2 | . 2 . . Burn 2 | . 2 . . Melee Attacks . | . . . . Impact . | . . . . Slashing . | . . . . Piercing . | . . . . Sneak Attacks . | . . . . Combat Hostiles . | . . . . Follow-up Attacks . | . . . . Damage Inflicted 1548 | 68 514 139 827 Guns 824 | 68 485 43 228 Cannons . | . . . . Explosions 615 | . 29 . 586 Melee . | . . . . Ramming 13 | . . . 13 Kinetic 352 | 44 183 43 82 Thermal 415 | . 173 96 146 Explosive 586 | . . . 586 Electromagnetic 182 | 24 158 . . Impact . | . . . . Slashing . | . . . . Piercing . | . . . . Highest Corruption 2 | . . . 2 Average Corruption 2 | . . . 2 Corruption Purged . | . . . . Corruption Blocked . | . . . . Effects 1 | . . . 1 Matter Fused 1 | . . . 1 Overload Shots . | . . . . Overflow Damage 4 | . . 4 . Projectiles 4 | . . 4 . Explosions . | . . . . Melee . | . . . . Knockbacks . | . . . . Impact . | . . . . Kinetic . | . . . . Secondary . | . . . . Self-Inflicted Damage 131 | . . . 131 Shots 4 | . . . 4 Rammed 2 | . . . 2 Targets Rammed 2 | . . . 2 Kicked . | . . . . Crushed . | . . . . Highest Temperature 225 | 6 225 100 193 Average Temperature 60 | 6 58 47 74 Received Heat Transfer 735 | 6 303 24 402 Siege Activations . | . . . . Robots Corrupted . | . . . . Combat Hostiles . | . . . . Parts Fried . | . . . . Impact Corruptions . | . . . . Robots Melted . | . . . . Combat Hostiles . | . . . . Parts Melted 3 | . 1 2 . Heat Transferred 1101 | . 531 200 370 Parts Sabotaged . | . . . . Parts Stolen . | . . . . Parts Stripped . | . . . . Power Chain Reactions 1 | . 1 . . Alert | -11 -10 -10 -9 ------- Run | Yrd Mat Min Mat Peak Influence 291 | 25 291 71 177 Initial 46 | . 16 46 27 Average 73 | 16 121 35 87 Maximum Alert Level 1 | . 1 . . Low Security (%) 96 | 100 87 100 100 Level 1 3 | . 12 . . Level 2 . | . . . . Level 3 . | . . . . Level 4 . | . . . . Level 5 . | . . . . High Security . | . . . . Max Security . | . . . . Squads Dispatched 4 | . 2 . 2 Investigation 1 | . 1 . . Extermination . | . . . . Reinforcement 3 | . 1 . 2 Assault . | . . . . Garrison . | . . . . Intercept . | . . . . Searches Triggered . | . . . . Construction Impeded 1 | . . . 1 Haulers Reinforced . | . . . . Active Scanning Responses . | . . . . Cargo Convoy Interrupts . | . . . . Stealth | -11 -10 -10 -9 --------- Run | Yrd Mat Min Mat Distress Signals 1 | . . . 1 Communications Jammed . | . . . . Distress Signals . | . . . . Times Spotted 44 | 1 15 5 23 Peak Tracking Total 12 | 1 4 2 12 Tactical Retreats 1 | . . 1 . Traps | -11 -10 -10 -9 ------- Run | Yrd Mat Min Mat Traps Triggered . | . . . . Indirectly . | . . . . Trap Hack Attempts . | . . . . Triggered . | . . . . Disarmed . | . . . . Reprogrammed . | . . . . Reused . | . . . . Traps Extracted . | . . . . Installed . | . . . . Triggered . | . . . . Machines | -11 -10 -10 -9 ---------- Run | Yrd Mat Min Mat Machines Disabled 3 | . 2 . 1 Max in Single Turn 1 | . 1 . 1 Machines Repaired . | . . . . Machines Dismantled . | . . . . Machines Sabotaged . | . . . . Overloaded Fab Kills . | . . . . Hacking | -11 -10 -10 -9 --------- Run | Yrd Mat Min Mat Machines Accessed 8 | . 6 . 2 Terminals 5 | . 4 . 1 Fabricators . | . . . . Repair Stations 2 | . 1 . 1 Recycling Units 1 | . 1 . . Scanalyzers . | . . . . Garrison Access . | . . . . Total Hacks 39 | . 35 . 4 Successful 28 | . 25 . 3 Failed 10 | . 9 . 1 Catastrophic . | . . . . Database Lockouts 1 | . 1 . . Manual . | . . . . Terminals 24 | . 22 . 2 Fabricators . | . . . . Repair Stations 12 | . 10 . 2 Recycling Units 3 | . 3 . . Scanalyzers . | . . . . Garrison Access . | . . . . Terminal Hacks 16 | . 15 . 1 Record 10 | . 10 . . Alert Level 3 | . 2 . 1 Locate Traps 1 | . 1 . . Dispatch Records 1 | . 1 . . Investigation Status 1 | . 1 . . Fabricator Hacks . | . . . . Repair Station Hacks 10 | . 8 . 2 Scan Component 7 | . 6 . 1 Repair 3 | . 2 . 1 Recycling Unit Hacks 2 | . 2 . . Report Inventory 1 | . 1 . . Retrieve Components 1 | . 1 . . Scanalyzer . | . . . . Garrison Access Hacks . | . . . . Unauthorized Hacks . | . . . . Terminals . | . . . . Fabricators . | . . . . Repair Stations . | . . . . Recycling Units . | . . . . Scanalyzers . | . . . . Garrison Access . | . . . . Data Cores Recovered . | . . . . Used . | . . . . Hacking Detections 6 | . 4 . 2 Full Trace Events 1 | . 1 . . Feedback Events . | . . . . Feedback Blocked . | . . . . Robot Schematics Acquired . | . . . . Robots Built . | . . . . Authchips . | . . . . Time . | . . . . Total Robot Build Rating . | . . . . Part Schematics Acquired . | . . . . Parts Built . | . . . . Authchips . | . . . . Time . | . . . . Total Part Build Rating . | . . . . Parts Repaired 3 | . 2 . 1 Time 90 | . 64 . 26 Parts Recycled . | . . . . Recycled Matter . | . . . . Retrieved Matter . | . . . . Retrieved Components 1 | . 1 . . Parts Scanalyzed . | . . . . Part Schematics Acquired . | . . . . Parts Damaged . | . . . . Bothacking | -11 -10 -10 -9 ------------ Run | Yrd Mat Min Mat Used RIF Installer . | . . . . Robots Hacked . | . . . . Non-combat . | . . . . Combat . | . . . . Robot Hacks Applied . | . . . . Relay Couplers Released . | . . . . Fabnet Peak Effective % . | . . . . Robots Rewired . | . . . . Allies Hacked . | . . . . Hacks Repelled . | . . . . Allies | -11 -10 -10 -9 -------- Run | Yrd Mat Min Mat Total Allies . | . . . . Largest Group . | . . . . Highest-Rated Group . | . . . . Highest-Rated Ally . | . . . . Total Orders . | . . . . Ally Attacks . | . . . . Total Damage . | . . . . Kills . | . . . . Allies Corrupted . | . . . . Allies Melted . | . . . . Intel | -11 -10 -10 -9 ------- Run | Yrd Mat Min Mat Robot Analysis Total . | . . . . Derelict Logs Recovered . | . . . . Drone Launches . | . . . . Drone Recoveries . | . . . . Exploration | -11 -10 -10 -9 ------------- Run | Yrd Mat Min Mat Turns Passed 2249 | 307 723 677 542 Spaces Moved 1372 | 236 403 515 218 Core 38 | 28 . . 10 Treads 3 | . . . 3 Legs 1331 | 208 403 515 205 Wheels . | . . . . Hover . | . . . . Flight . | . . . . Fastest Speed 50 | 50 120 120 50 Average Speed 121 | 111 121 120 134 Slowest Speed 260 | 120 190 120 260 Overloaded Moves . | . . . . Propulsion Burnouts . | . . . . Robots Hopped . | . . . . Cave-ins Triggered . | . . . . Exploration Rate (%) 34 | 11 42 64 22 Regions Visited 3 Branch Regions 1 Pre-discovered Areas . | . . . . Known Exits Taken . | . . . . Unknown Exits Taken 3 | 1 1 1 . Scrap Searched 1 | . . 1 . Spaces Dug 5 | . 5 . . Terrain Destroyed 62 | . 9 1 52 Melee . | . . . . Projectile 6 | . 5 1 . AOE 56 | . 4 . 52 Terrain Rammed . | . . . . Walls Destroyed . | . . . . Machines Disabled . | . . . . Actions | -11 -10 -10 -9 --------- Run | Yrd Mat Min Mat Total 1820 | 272 574 538 436 Wait 221 | 2 80 1 138 Move 1369 | 235 402 514 218 Hop . | . . . . Pick Up 60 | 13 28 3 16 Fast Attach . | . . . . Attach 36 | 9 11 3 13 Detach 5 | 2 1 . 2 Swap 8 | . 3 1 4 Drop 35 | 3 13 3 16 Fire 83 | 8 36 12 27 Melee . | . . . . Ram 2 | . . . 2 Kick . | . . . . Crush . | . . . . Escape Stasis . | . . . . Rewire 1 | . . 1 . Trap . | . . . . Miscellaneous . | . . . . Route ------- -11/Scrapyard -10/Materials -10/Mines -9/Materials (discovered 1 exit: [*Min]) History --------- Turn | Location | Event 2 | -11/Scrapyard | Met Revision 17 74 | -11/Scrapyard | Discovered new exit (range 8) 308 | -11/Scrapyard | Entered Materials 309 | -10/Materials | Build established: Mutant 651 | -10/Materials | Discovered new exit (range 15) 931 | -10/Materials | Repaired Imp. Terrain Scanner 958 | -10/Materials | Repaired Hcp. Matter Pod 1009 | -10/Materials | Central database locked down 1031 | -10/Materials | Entered Mines 1044 | -10/Mines | Met a Derelict bent on vengeance 1084 | -10/Mines | Received a Rocket Launcher from a helpful Derelict 1215 | -10/Mines | Found a damaged Exp. Sensor Array with a note attached 1218 | -10/Mines | Found Prototype Device 1506 | -10/Mines | Build established: Scavenger-Mutant 1509 | -10/Mines | Discovered new exit (range 5) 1596 | -10/Mines | Core integrity fell below 50% 1708 | -10/Mines | Entered Materials 1708 | -9/Materials | Evolved 2 slots: Utility x2 1813 | -9/Materials | Repaired Aluminum Leg 2024 | -9/Materials | Build established: Scavenger-Skirmisher 2237 | -9/Materials | Core integrity fell below 50% 2239 | -9/Materials | Discovered new exit (range 13) 2246 | -9/Materials | Core integrity fell below 20% 2250 | -9/Materials | Destroyed by G-34 Mercenary with Small Laser Last Messages --------------- 02230_ Hrd. Light Armor Plating destroyed. 02231_ Slammed into S-10 Pest. Ramming works as a last resort when unarmed or blocked, but can have serious negative consequences. 02233_ Beam Rifle destroyed. 02236_ Dropped Autogun. 02237_ Dropped Rnf. Ion Engine. 02239_ EXIT=FOUND 02240_ Acquired Imp. Treads. 02242_ Slammed into G-34 Mercenary. 02242_ Sensor Array broken. 02242_ Destabilizing: Short circuit. 02242_ R-06 Scavenger collects Rnf. Ion Engine. 02243_ G-34 Mercenary destroyed. 02245_ Acquired 43 matter. 02245_ R-06 Scavenger collects Autogun. 02248_ Acquired Ion Engine. 02248_ Broken Sensor Array destroyed. [Achievement: First Step to Greatness] Map ----- +----------------------------------------------------+ | ????????????????????????????????? ??????# | | ???????????????????????????????????? ?#######+#### | | ????????????????????????????? ?? ???# # ## | | ?????????????????????????????????""???+ # | | ?????????????????????????????????"Y ??# ! | | ??????????????????????????????????" ??## ## | | ????????????????????????##????#???? ??# ## ## | | ???????????????????????# #######+### ########? | | ???????????????????????# #?????#? | | ??????????????????????? ######## | | ???????????????????????# ## | | ???????????????????????# ########## ## " | | ????????????????#############???????### ## "" | | ????????????????? ########## %# "" | | ?????????????????? k wu # "" | | ??????????????????? / "" | | ???????????????????? # "" | | ????????????????????? a ### ###### %# " | | ?????????????????????? ####+####### ## " | | ???????????????####???# # ! # # # " | | ??????????????#""|"|??# # """ # # # | | ??????????????# "|"|"?# # "T"g ### # ####+ | | ??????????" # # # " " g /rr # #?# | | ???????? gs# sg Y [####+### #?# | | ???????? < ! s """ # ##?# | | ???????? k @ # """ # #### | | ??????????##+## # # """ # ## | | ??????????????#######?# # # #### | | ????????????????????? ########## ##?# | | ??????????????????? "???#????# ##?# | | ??????????????????# == T????????# #??? | | ??????????????????# == ""???????# #??? | | ??????????????????# = ##???????# #??? | | ??????????????????# T????????##########??? | | ??????????????????# #????????????????????? | | ?????????????????? a #????????????????????? | | ?????????????????###+#######????????????????????? | | ????????????????????????????????????????????????? | | ????????????????????????????????????????????????? | | ?????????????????????????????????????????????????? | | ?????????????????????????????????????????????????? | | ?????????????????????????????????????????????????? | | ?????????????????????????????????????????????????? | | ?????????????????????????????????????????????????? | | ?????????????????????????????????????????????????? | | ?????????????????????????????????????????????????? | | ?????????????????????????????????????????????????? | | ?????????????????????????????????????????????????? | | ?????????????????????????????????????????????????? | | ?????????????????????????????????????????????????? | +----------------------------------------------------+ Best States ------------- Heat Dissipation 35 Energy Generation 12 Energy Capacity 265 Matter Stores 300 Matter Capacity 300 Sight Range 18 Robot Scan Range 14 Terrain Scan Range 16 Terrain Scan Density 10 Armor Coverage 150 Evasion (%) 55 Recoil Reduction 1 Item Schematics ----------------- None Robot Schematics ------------------ None Fabricated ------------ Nothing Alien Tech Used ----------------- None Achievements -------------- First Step to Greatness Let's See Who's Tougher Librarian One Hack Too Far Part-time Mechanic Storm Trooper Uninvited Guest Challenges ------------ None Game ------ Seed SpikedCouplerRegenerator Manual? 0 Play Time 02:11:17 Cumulative 2.1 hours Start 2024.04.14 @ 20:34:59 End 2024.04.15 @ 00:49:33 Sessions 1 Manual Loads 0 Difficulty Rogue Special Mode None Game No. 1 Rogue 1 Adventurer 0 Explorer 0 Win Type - Total 0 Types 0/0/0/0/0/0/0/0/0 Lore% 1 Gallery% 2 Achievement% 2 Wizard Run 0 Options --------- Layout 1 ASCII 0 Keyboard 0 Movement Arrows Keybinds 0 Fullscreen 1 Font 24/Smallcaps Map View 50x35 Zoom Use 0% Tactical HUD 1 Map Filters NONE Filters NONE Steam 1 RUN: e3dd058e-46c9-4524-a57e-b194c8b12e2d